[Event "Early-Titled-Tuesday-Blitz-September-05-2023"]
[Site "Chess.com"]
[Date "2023.09.05"]
[Round "5"]
[White "unclear15"]
[Black "ChampStan"]
[Result "1-0"]
[WhiteElo "2405"]
[BlackElo "2109"]
[TimeControl "180+1"]
[EndTime "8:53:18 PDT"]
[Termination "unclear15 won by checkmate"]

1. e4 {[%clk 0:03:00.9]} 1... c5 {[%clk 0:02:31.2]} 2. Nc3 {[%clk 0:02:59.3]}
2... d6 {[%clk 0:02:29.2]} 3. d4 {[%clk 0:02:59]} 3... cxd4 {[%clk 0:02:30.1]}
4. Qxd4 {[%clk 0:02:59.1]} 4... Nc6 {[%clk 0:02:29.5]} 5. Qd2 {[%clk 0:02:59]}
5... Nf6 {[%clk 0:02:28.4]} 6. b3 {[%clk 0:02:59.1]} 6... e5 {[%clk 0:02:25.9]}
7. Bb2 {[%clk 0:02:58.2]} 7... Be7 {[%clk 0:02:24.8]} 8. O-O-O {[%clk
0:02:58.4]} 8... Nd7 {[%clk 0:02:16.6]} 9. Nf3 {[%clk 0:02:48.2]} 9... O-O
{[%clk 0:02:15.1]} 10. Nd5 {[%clk 0:02:47.6]} 10... Nf6 {[%clk 0:02:01.5]} 11.
Nxf6+ {[%clk 0:02:44.8]} 11... Bxf6 {[%clk 0:01:57.4]} 12. Qxd6 {[%clk
0:02:44.8]} 12... Bg4 {[%clk 0:01:50]} 13. Qxd8 {[%clk 0:02:38.7]} 13... Raxd8
{[%clk 0:01:47.3]} 14. Be2 {[%clk 0:02:34]} 14... Rfe8 {[%clk 0:01:35]} 15. h3
{[%clk 0:02:30.4]} 15... Bh5 {[%clk 0:01:31.2]} 16. g4 {[%clk 0:02:17.6]} 16...
Bg6 {[%clk 0:01:29.6]} 17. Bd3 {[%clk 0:02:11.1]} 17... h6 {[%clk 0:01:25.3]}
18. Bc3 {[%clk 0:02:06.2]} 18... Rd7 {[%clk 0:01:19.2]} 19. Kb2 {[%clk
0:02:04.8]} 19... Red8 {[%clk 0:01:17.7]} 20. Rdg1 {[%clk 0:01:56.6]} 20... a6
{[%clk 0:01:09.3]} 21. h4 {[%clk 0:01:42.6]} 21... Re8 {[%clk 0:00:53.7]} 22. g5
{[%clk 0:01:39.3]} 22... hxg5 {[%clk 0:00:50.7]} 23. hxg5 {[%clk 0:01:37.1]}
23... Bd8 {[%clk 0:00:48.6]} 24. Nh4 {[%clk 0:01:16.1]} 24... Rd6 {[%clk
0:00:45.1]} 25. Nf5 {[%clk 0:01:06.7]} 25... Rde6 {[%clk 0:00:41]} 26. Rh2
{[%clk 0:01:06.3]} 26... Ne7 {[%clk 0:00:37.3]} 27. Rgh1 {[%clk 0:01:04.1]}
27... Kf8 {[%clk 0:00:23.1]} 28. Bb4 {[%clk 0:00:59.3]} 28... Rb6 {[%clk
0:00:19.5]} 29. Rh8# {[%clk 0:00:57.5]} 1-0

[Event "Early-Titled-Tuesday-Blitz-September-05-2023"]
[Site "Chess.com"]
[Date "2023.09.05"]
[Round "5"]
[White "chess94cu"]
[Black "artooon"]
[Result "0-1"]
[WhiteElo "2717"]
[BlackElo "3044"]
[TimeControl "180+1"]
[EndTime "8:53:21 PDT"]
[Termination "artooon won by resignation"]

1. e4 {[%clk 0:03:00.9]} 1... c5 {[%clk 0:02:59.8]} 2. Nf3 {[%clk 0:03:00.7]}
2... Nc6 {[%clk 0:03:00.5]} 3. Bb5 {[%clk 0:03:00.4]} 3... Nf6 {[%clk
0:03:00.4]} 4. Nc3 {[%clk 0:02:58.2]} 4... d6 {[%clk 0:03:00.6]} 5. O-O {[%clk
0:02:57.3]} 5... e5 {[%clk 0:03:00]} 6. d3 {[%clk 0:02:52.7]} 6... Be7 {[%clk
0:03:00.2]} 7. Ne2 {[%clk 0:02:50.9]} 7... O-O {[%clk 0:03:00.4]} 8. c3 {[%clk
0:02:51.4]} 8... Ne8 {[%clk 0:02:57]} 9. Ng3 {[%clk 0:02:50.3]} 9... Nc7 {[%clk
0:02:56.7]} 10. Ba4 {[%clk 0:02:47.8]} 10... g6 {[%clk 0:02:54.5]} 11. Bh6
{[%clk 0:02:45.1]} 11... Re8 {[%clk 0:02:54.9]} 12. d4 {[%clk 0:02:42.4]} 12...
b5 {[%clk 0:02:51.8]} 13. Bb3 {[%clk 0:02:40.7]} 13... c4 {[%clk 0:02:51.3]} 14.
Bc2 {[%clk 0:02:40.3]} 14... Bf6 {[%clk 0:02:51.1]} 15. d5 {[%clk 0:02:36.8]}
15... Na5 {[%clk 0:02:51.1]} 16. a4 {[%clk 0:02:36.8]} 16... a6 {[%clk
0:02:47.6]} 17. h3 {[%clk 0:02:15.8]} 17... Bd7 {[%clk 0:02:37.4]} 18. Nh2
{[%clk 0:02:02.4]} 18... Bg5 {[%clk 0:02:28.5]} 19. Bxg5 {[%clk 0:02:00.8]}
19... Qxg5 {[%clk 0:02:29.4]} 20. axb5 {[%clk 0:01:53.6]} 20... axb5 {[%clk
0:02:30.3]} 21. Nf3 {[%clk 0:01:31.3]} 21... Qf6 {[%clk 0:02:20.8]} 22. Qd2
{[%clk 0:01:31]} 22... Nb7 {[%clk 0:02:19.1]} 23. Qh6 {[%clk 0:01:30.4]} 23...
Qg7 {[%clk 0:02:14.7]} 24. Qe3 {[%clk 0:01:27.5]} 24... Nc5 {[%clk 0:02:14.2]}
25. Nd2 {[%clk 0:01:27.3]} 25... Rf8 {[%clk 0:02:02.6]} 26. f4 {[%clk
0:01:25.5]} 26... f5 {[%clk 0:02:01]} 27. exf5 {[%clk 0:01:21.3]} 27... gxf5
{[%clk 0:01:58.6]} 28. Rxa8 {[%clk 0:01:20.3]} 28... Nxa8 {[%clk 0:01:54.9]} 29.
fxe5 {[%clk 0:01:15.4]} 29... Qxe5 {[%clk 0:01:51.9]} 30. Qxe5 {[%clk
0:01:07.6]} 30... dxe5 {[%clk 0:01:52]} 31. Nxf5 {[%clk 0:01:07.6]} 31... Nb6
{[%clk 0:01:45.8]} 32. d6 {[%clk 0:00:56.3]} 32... Bxf5 {[%clk 0:01:38.3]} 33.
Bxf5 {[%clk 0:00:55.2]} 33... Rd8 {[%clk 0:01:38.8]} 34. Ne4 {[%clk 0:00:33.8]}
34... Nxe4 {[%clk 0:01:38.9]} 35. Bxe4 {[%clk 0:00:34.7]} 35... Rxd6 {[%clk
0:01:39.4]} 36. Rf5 {[%clk 0:00:35.4]} 36... Nd7 {[%clk 0:01:39.3]} 37. Rg5+
{[%clk 0:00:34.9]} 37... Kh8 {[%clk 0:01:39.4]} 38. Bf5 {[%clk 0:00:32.1]} 38...
Nc5 {[%clk 0:01:37]} 39. Rh5 {[%clk 0:00:30.4]} 39... h6 {[%clk 0:01:36.8]} 40.
Bg4 {[%clk 0:00:29.3]} 40... Nd3 {[%clk 0:01:35.8]} 41. Bf5 {[%clk 0:00:29.5]}
41... Nxb2 {[%clk 0:01:28.3]} 42. Be4 {[%clk 0:00:30.2]} 42... Nd3 {[%clk
0:01:28.5]} 43. Kf1 {[%clk 0:00:28.2]} 43... Rf6+ {[%clk 0:01:27.4]} 44. Ke2
{[%clk 0:00:25.6]} 44... Nf4+ {[%clk 0:01:27.2]} 0-1

[Event "Early-Titled-Tuesday-Blitz-September-05-2023"]
[Site "Chess.com"]
[Date "2023.09.05"]
[Round "5"]
[White "Polish_fighter3000"]
[Black "Abund"]
[Result "1-0"]
[WhiteElo "3089"]
[BlackElo "2719"]
[TimeControl "180+1"]
[EndTime "8:53:22 PDT"]
[Termination "Polish_fighter3000 won by resignation"]

1. b4 {[%clk 0:02:59.3]} 1... d5 {[%clk 0:02:55.6]} 2. Bb2 {[%clk 0:02:59.3]}
2... Nf6 {[%clk 0:02:55.9]} 3. e3 {[%clk 0:02:58.4]} 3... Bg4 {[%clk 0:02:53.7]}
4. Nf3 {[%clk 0:02:57.5]} 4... e6 {[%clk 0:02:53]} 5. a3 {[%clk 0:02:57.6]} 5...
Nbd7 {[%clk 0:02:51]} 6. h3 {[%clk 0:02:56.8]} 6... Bh5 {[%clk 0:02:50.2]} 7. c4
{[%clk 0:02:56.6]} 7... c6 {[%clk 0:02:46.3]} 8. Be2 {[%clk 0:02:44.2]} 8...
Bxf3 {[%clk 0:02:42]} 9. gxf3 {[%clk 0:02:45.1]} 9... g6 {[%clk 0:02:38.9]} 10.
f4 {[%clk 0:02:33.9]} 10... Bg7 {[%clk 0:02:37.5]} 11. d3 {[%clk 0:02:31.8]}
11... Qe7 {[%clk 0:02:33.2]} 12. Nd2 {[%clk 0:02:30.8]} 12... a5 {[%clk
0:02:24.8]} 13. Qb3 {[%clk 0:02:25.7]} 13... axb4 {[%clk 0:02:20.7]} 14. axb4
{[%clk 0:02:26.6]} 14... Rxa1+ {[%clk 0:02:20.6]} 15. Bxa1 {[%clk 0:02:27.5]}
15... O-O {[%clk 0:02:20.7]} 16. h4 {[%clk 0:02:26.8]} 16... Ra8 {[%clk
0:02:17.9]} 17. Bc3 {[%clk 0:02:25.3]} 17... e5 {[%clk 0:02:10.5]} 18. fxe5
{[%clk 0:02:23.5]} 18... Nxe5 {[%clk 0:02:10.1]} 19. h5 {[%clk 0:02:17.7]} 19...
Qe6 {[%clk 0:01:46.7]} 20. h6 {[%clk 0:02:11.6]} 20... Bf8 {[%clk 0:01:42.9]}
21. Qb2 {[%clk 0:02:07.3]} 21... Bd6 {[%clk 0:01:37.4]} 22. c5 {[%clk
0:02:01.6]} 22... Bc7 {[%clk 0:01:37]} 23. Nb3 {[%clk 0:01:58.2]} 23... Ned7
{[%clk 0:01:28.1]} 24. b5 {[%clk 0:01:45]} 24... Be5 {[%clk 0:01:22.4]} 25. Nd4
{[%clk 0:01:39.6]} 25... Qe7 {[%clk 0:01:20.6]} 26. bxc6 {[%clk 0:01:36]} 26...
Nxc5 {[%clk 0:01:09.6]} 27. Kf1 {[%clk 0:01:07.5]} 27... Rb8 {[%clk 0:00:42.5]}
28. Nf5 {[%clk 0:01:05.6]} 28... gxf5 {[%clk 0:00:28]} 29. Bxe5 {[%clk 0:01:06]}
29... Na4 {[%clk 0:00:16.3]} 30. Bxf6 {[%clk 0:01:01]} 30... Nxb2 {[%clk
0:00:15.5]} 31. Bxe7 {[%clk 0:01:00.7]} 1-0

[Event "Early-Titled-Tuesday-Blitz-September-05-2023"]
[Site "Chess.com"]
[Date "2023.09.05"]
[Round "5"]
[White "rdarruda"]
[Black "cthulhuuu"]
[Result "0-1"]
[WhiteElo "2580"]
[BlackElo "2465"]
[TimeControl "180+1"]
[EndTime "8:53:23 PDT"]
[Termination "cthulhuuu won by resignation"]

1. Nf3 {[%clk 0:02:54.3]} 1... Nf6 {[%clk 0:03:00]} 2. d4 {[%clk 0:02:53.9]}
2... g6 {[%clk 0:03:00.1]} 3. Nc3 {[%clk 0:02:53.8]} 3... d5 {[%clk 0:02:59.7]}
4. Bg5 {[%clk 0:02:53.2]} 4... Bg7 {[%clk 0:02:59.7]} 5. Bxf6 {[%clk 0:02:53.2]}
5... Bxf6 {[%clk 0:02:59.6]} 6. e4 {[%clk 0:02:53.4]} 6... dxe4 {[%clk
0:02:58.9]} 7. Nxe4 {[%clk 0:02:54.3]} 7... Bg7 {[%clk 0:02:59]} 8. Bc4 {[%clk
0:02:54.2]} 8... O-O {[%clk 0:02:58.2]} 9. O-O {[%clk 0:02:53.9]} 9... c6 {[%clk
0:02:55.2]} 10. Qe2 {[%clk 0:02:53.1]} 10... Nd7 {[%clk 0:02:50.9]} 11. Rad1
{[%clk 0:02:52.3]} 11... Nf6 {[%clk 0:02:48.4]} 12. Rfe1 {[%clk 0:02:49.7]}
12... Qb6 {[%clk 0:02:42.7]} 13. Bb3 {[%clk 0:02:39.7]} 13... a5 {[%clk
0:02:42.4]} 14. a4 {[%clk 0:02:38.5]} 14... Bg4 {[%clk 0:02:42.2]} 15. h3 {[%clk
0:02:34.7]} 15... Bxf3 {[%clk 0:02:36.1]} 16. Qxf3 {[%clk 0:02:35.6]} 16... Nxe4
{[%clk 0:02:27.2]} 17. Qxe4 {[%clk 0:02:35.5]} 17... e6 {[%clk 0:02:27.6]} 18.
h4 {[%clk 0:02:35.3]} 18... h5 {[%clk 0:02:27.6]} 19. g4 {[%clk 0:02:31.9]}
19... hxg4 {[%clk 0:02:22.4]} 20. Qxg4 {[%clk 0:02:32.8]} 20... Rad8 {[%clk
0:02:22.3]} 21. Re4 {[%clk 0:02:07.9]} 21... f5 {[%clk 0:01:18.5]} 22. Qxg6
{[%clk 0:01:19.1]} 22... Rf6 {[%clk 0:01:18.6]} 23. Bxe6+ {[%clk 0:00:37.4]}
23... Kf8 {[%clk 0:01:18.5]} 24. Qh7 {[%clk 0:00:25.3]} 24... fxe4 {[%clk
0:01:11.7]} 25. Qg8+ {[%clk 0:00:25.7]} 25... Ke7 {[%clk 0:01:11.7]} 26. Qxg7+
{[%clk 0:00:26.2]} 26... Kxe6 {[%clk 0:01:11.6]} 27. Re1 {[%clk 0:00:18.4]}
27... Qxd4 {[%clk 0:00:57.5]} 28. Qg4+ {[%clk 0:00:14]} 28... Kf7 {[%clk
0:00:57.3]} 29. Rxe4 {[%clk 0:00:12.1]} 29... Qxf2+ {[%clk 0:00:56.9]} 0-1

[Event "Early-Titled-Tuesday-Blitz-September-05-2023"]
[Site "Chess.com"]
[Date "2023.09.05"]
[Round "5"]
[White "Heinza9"]
[Black "Gogolev_Artemy"]
[Result "1-0"]
[WhiteElo "2284"]
[BlackElo "2420"]
[TimeControl "180+1"]
[EndTime "8:53:28 PDT"]
[Termination "Heinza9 won on time"]

1. e4 {[%clk 0:03:00.9]} 1... c5 {[%clk 0:02:56.4]} 2. Nf3 {[%clk 0:02:59.9]}
2... e6 {[%clk 0:02:56.2]} 3. b3 {[%clk 0:02:59.5]} 3... b6 {[%clk 0:02:53]} 4.
d4 {[%clk 0:02:58.6]} 4... cxd4 {[%clk 0:02:51.9]} 5. Nxd4 {[%clk 0:02:58.7]}
5... Bb7 {[%clk 0:02:52.2]} 6. Bd3 {[%clk 0:02:58.7]} 6... Nf6 {[%clk
0:02:48.9]} 7. Qe2 {[%clk 0:02:58.4]} 7... Nc6 {[%clk 0:02:47.7]} 8. Bb2 {[%clk
0:02:55.4]} 8... Nxd4 {[%clk 0:02:09.7]} 9. Bxd4 {[%clk 0:02:53.9]} 9... Bc5
{[%clk 0:02:10.3]} 10. Bxc5 {[%clk 0:02:39]} 10... bxc5 {[%clk 0:02:11.2]} 11.
O-O {[%clk 0:02:38.8]} 11... O-O {[%clk 0:02:08]} 12. c4 {[%clk 0:02:38.6]}
12... d5 {[%clk 0:01:43]} 13. e5 {[%clk 0:02:37.6]} 13... dxc4 {[%clk
0:01:41.4]} 14. Bxc4 {[%clk 0:02:34.5]} 14... Nd5 {[%clk 0:01:12.9]} 15. Qg4
{[%clk 0:02:09.7]} 15... h5 {[%clk 0:00:38.4]} 16. Qg3 {[%clk 0:02:03.7]} 16...
Ne7 {[%clk 0:00:19.6]} 17. Nc3 {[%clk 0:01:57.2]} 17... Qd4 {[%clk 0:00:19.2]}
18. Nb5 {[%clk 0:01:50.2]} 18... Qe4 {[%clk 0:00:13.7]} 19. Rfe1 {[%clk
0:01:47.3]} 19... h4 {[%clk 0:00:06.1]} 20. Rxe4 {[%clk 0:01:12.7]} 20... hxg3
{[%clk 0:00:05.9]} 21. Re2 {[%clk 0:01:12.2]} 21... gxf2+ {[%clk 0:00:05.5]} 22.
Kxf2 {[%clk 0:01:11.4]} 22... Nf5 {[%clk 0:00:04.6]} 23. Nd6 {[%clk 0:00:59.3]}
23... Nxd6 {[%clk 0:00:03.8]} 24. exd6 {[%clk 0:00:59.4]} 24... Rad8 {[%clk
0:00:04.4]} 25. Rd1 {[%clk 0:00:59.3]} 25... Bd5 {[%clk 0:00:02.9]} 26. Bxd5
{[%clk 0:00:56.7]} 26... Rxd6 {[%clk 0:00:03.2]} 27. Rc2 {[%clk 0:00:51.9]} 1-0

[Event "Early-Titled-Tuesday-Blitz-September-05-2023"]
[Site "Chess.com"]
[Date "2023.09.05"]
[Round "5"]
[White "Jmf24"]
[Black "AdrianaPalao"]
[Result "1-0"]
[WhiteElo "2380"]
[BlackElo "2061"]
[TimeControl "180+1"]
[EndTime "8:53:31 PDT"]
[Termination "Jmf24 won by resignation"]

1. e4 {[%clk 0:03:00.9]} 1... e5 {[%clk 0:02:57.9]} 2. Nf3 {[%clk 0:03:00.8]}
2... Nc6 {[%clk 0:02:56.1]} 3. Nc3 {[%clk 0:03:00.9]} 3... Nf6 {[%clk
0:02:54.9]} 4. d4 {[%clk 0:03:01.2]} 4... exd4 {[%clk 0:02:51.8]} 5. Nxd4 {[%clk
0:03:02.1]} 5... Bb4 {[%clk 0:02:51.6]} 6. Nxc6 {[%clk 0:03:01.1]} 6... bxc6
{[%clk 0:02:50.3]} 7. Bd3 {[%clk 0:03:01.2]} 7... O-O {[%clk 0:02:44.4]} 8. O-O
{[%clk 0:03:00.8]} 8... d5 {[%clk 0:02:43.6]} 9. exd5 {[%clk 0:02:59.4]} 9...
cxd5 {[%clk 0:02:41.6]} 10. h3 {[%clk 0:02:59.4]} 10... h6 {[%clk 0:02:41.1]}
11. Qf3 {[%clk 0:02:58.5]} 11... Be6 {[%clk 0:02:34.5]} 12. Bf4 {[%clk
0:02:57.4]} 12... Bd6 {[%clk 0:02:29.6]} 13. Rfe1 {[%clk 0:02:54.8]} 13... Rb8
{[%clk 0:02:22.2]} 14. b3 {[%clk 0:02:54.4]} 14... Bb4 {[%clk 0:02:13.7]} 15.
Bd2 {[%clk 0:02:53.5]} 15... d4 {[%clk 0:02:12.3]} 16. Nb1 {[%clk 0:02:52.9]}
16... Bd6 {[%clk 0:02:05.3]} 17. a4 {[%clk 0:02:51.2]} 17... Bd5 {[%clk
0:02:03.2]} 18. Qd1 {[%clk 0:02:49.3]} 18... Qc8 {[%clk 0:01:52.4]} 19. Na3
{[%clk 0:02:47.7]} 19... Qb7 {[%clk 0:01:51.8]} 20. f3 {[%clk 0:02:44.4]} 20...
Rbe8 {[%clk 0:01:34.7]} 21. Nc4 {[%clk 0:02:41]} 21... Bg3 {[%clk 0:01:31.8]}
22. Rxe8 {[%clk 0:02:39.1]} 22... Rxe8 {[%clk 0:01:31.6]} 23. Qf1 {[%clk
0:02:38.3]} 23... Qc8 {[%clk 0:01:13.1]} 24. Be1 {[%clk 0:02:31.5]} 24... Bf4
{[%clk 0:01:06.2]} 25. Bf2 {[%clk 0:02:31.3]} 25... Nh5 {[%clk 0:01:01.7]} 26.
Re1 {[%clk 0:02:23.9]} 26... Bxc4 {[%clk 0:00:54.8]} 27. Bxc4 {[%clk 0:02:23.8]}
27... Be3 {[%clk 0:00:31.9]} 28. Bxe3 {[%clk 0:02:19.8]} 28... dxe3 {[%clk
0:00:27.4]} 29. Qd3 {[%clk 0:02:19.7]} 29... Nf4 {[%clk 0:00:26.8]} 30. Qd4
{[%clk 0:02:16]} 30... Qf5 {[%clk 0:00:19.4]} 31. Rxe3 {[%clk 0:02:09.4]} 31...
Rxe3 {[%clk 0:00:06.2]} 32. Qxe3 {[%clk 0:02:10.3]} 32... g6 {[%clk 0:00:04.4]}
33. Bd3 {[%clk 0:02:05]} 33... Qf6 {[%clk 0:00:04.1]} 34. Kh2 {[%clk 0:01:52.3]}
34... Kg7 {[%clk 0:00:04.1]} 35. g3 {[%clk 0:01:50.5]} 35... Nd5 {[%clk
0:00:03.9]} 36. Qe4 {[%clk 0:01:48.2]} 36... Ne7 {[%clk 0:00:03.8]} 37. f4
{[%clk 0:01:47.5]} 37... Nf5 {[%clk 0:00:04.1]} 38. Qe5 {[%clk 0:01:47.5]} 38...
Nd6 {[%clk 0:00:04.1]} 39. Qxf6+ {[%clk 0:01:47.2]} 39... Kxf6 {[%clk 0:00:05]}
40. Kg2 {[%clk 0:01:47.9]} 40... c5 {[%clk 0:00:05.1]} 41. Kf3 {[%clk
0:01:48.8]} 41... Ke6 {[%clk 0:00:05.6]} 42. g4 {[%clk 0:01:48.8]} 42... Kd5
{[%clk 0:00:05.3]} 43. Ke3 {[%clk 0:01:48.6]} 43... Ne8 {[%clk 0:00:03.3]} 44.
Bc4+ {[%clk 0:01:48]} 44... Kd6 {[%clk 0:00:03.1]} 45. Bxf7 {[%clk 0:01:48.9]}
45... Nf6 {[%clk 0:00:03.5]} 46. Bxg6 {[%clk 0:01:48.9]} 46... Nd5+ {[%clk
0:00:03.8]} 47. Kf3 {[%clk 0:01:49.6]} 47... Ne7 {[%clk 0:00:04.2]} 48. Be4
{[%clk 0:01:50]} 48... Ke6 {[%clk 0:00:04.2]} 49. h4 {[%clk 0:01:50.5]} 49...
Kf6 {[%clk 0:00:04.2]} 50. g5+ {[%clk 0:01:51.4]} 50... hxg5 {[%clk 0:00:04.1]}
51. hxg5+ {[%clk 0:01:52.3]} 51... Kg7 {[%clk 0:00:04.8]} 52. Kg4 {[%clk
0:01:53.2]} 52... Nc8 {[%clk 0:00:04]} 53. f5 {[%clk 0:01:54.1]} 53... Nd6
{[%clk 0:00:04.5]} 54. f6+ {[%clk 0:01:54.9]} 54... Kf7 {[%clk 0:00:04.3]} 55.
Bd5+ {[%clk 0:01:55.8]} 55... Kf8 {[%clk 0:00:04.3]} 56. g6 {[%clk 0:01:55.7]}
1-0

[Event "Early-Titled-Tuesday-Blitz-September-05-2023"]
[Site "Chess.com"]
[Date "2023.09.05"]
[Round "5"]
[White "TERMINATOR_PC"]
[Black "sergoy"]
[Result "0-1"]
[WhiteElo "2517"]
[BlackElo "2893"]
[TimeControl "180+1"]
[EndTime "8:53:33 PDT"]
[Termination "sergoy won by resignation"]

1. e4 {[%clk 0:02:59.5]} 1... c6 {[%clk 0:02:59.3]} 2. d4 {[%clk 0:02:59.1]}
2... d5 {[%clk 0:03:00]} 3. e5 {[%clk 0:02:59]} 3... c5 {[%clk 0:02:58.5]} 4.
dxc5 {[%clk 0:02:58.7]} 4... e6 {[%clk 0:02:57.5]} 5. a3 {[%clk 0:02:58.3]} 5...
Bxc5 {[%clk 0:02:53.2]} 6. Nf3 {[%clk 0:02:58.2]} 6... Ne7 {[%clk 0:02:51.8]} 7.
Bd3 {[%clk 0:02:56.3]} 7... Nbc6 {[%clk 0:02:51.3]} 8. b4 {[%clk 0:02:55.9]}
8... Bb6 {[%clk 0:02:51.3]} 9. O-O {[%clk 0:02:55.8]} 9... Ng6 {[%clk 0:02:52]}
10. Re1 {[%clk 0:02:55.7]} 10... O-O {[%clk 0:02:48.9]} 11. Bb2 {[%clk
0:02:52.6]} 11... f6 {[%clk 0:02:38.1]} 12. exf6 {[%clk 0:02:51.5]} 12... gxf6
{[%clk 0:02:39]} 13. c4 {[%clk 0:02:51.5]} 13... dxc4 {[%clk 0:02:12.9]} 14.
Bxc4 {[%clk 0:02:50.7]} 14... Qxd1 {[%clk 0:02:04.4]} 15. Rxd1 {[%clk
0:02:51.6]} 15... Kg7 {[%clk 0:02:01.1]} 16. Nc3 {[%clk 0:02:50.3]} 16... e5
{[%clk 0:01:57.3]} 17. Nd5 {[%clk 0:02:49.6]} 17... Bg4 {[%clk 0:01:57.2]} 18.
Nxb6 {[%clk 0:02:49.1]} 18... axb6 {[%clk 0:01:55.7]} 19. Bd5 {[%clk 0:02:49.5]}
19... Nf4 {[%clk 0:01:54.9]} 20. Be4 {[%clk 0:02:49.4]} 20... Rad8 {[%clk
0:01:46.8]} 21. h3 {[%clk 0:02:33.3]} 21... Bh5 {[%clk 0:01:40.8]} 22. Rxd8
{[%clk 0:02:01.9]} 22... Rxd8 {[%clk 0:01:39.5]} 23. Bxc6 {[%clk 0:02:01.6]}
23... bxc6 {[%clk 0:01:38.8]} 24. Nxe5 {[%clk 0:02:02.3]} 24... Rd2 {[%clk
0:01:26.5]} 25. Nc4 {[%clk 0:01:45.3]} 25... Rc2 {[%clk 0:01:25.8]} 26. Nxb6
{[%clk 0:01:43.2]} 26... Rxb2 {[%clk 0:01:23.9]} 27. a4 {[%clk 0:01:43.8]} 27...
Rxb4 {[%clk 0:01:21.4]} 28. a5 {[%clk 0:01:44.1]} 28... Ne6 {[%clk 0:01:03.2]}
29. Rc1 {[%clk 0:01:37.2]} 29... Be8 {[%clk 0:00:55.6]} 30. Re1 {[%clk
0:01:23.4]} 30... Kf7 {[%clk 0:00:48.9]} 31. Nc8 {[%clk 0:01:23.6]} 31... Bd7
{[%clk 0:00:44.6]} 32. Nd6+ {[%clk 0:01:23.6]} 32... Kg6 {[%clk 0:00:44.7]} 33.
Ra1 {[%clk 0:01:21.8]} 33... Rb8 {[%clk 0:00:42.9]} 34. a6 {[%clk 0:01:21.6]}
34... Ra8 {[%clk 0:00:42.4]} 35. a7 {[%clk 0:01:20.4]} 35... Nd4 {[%clk
0:00:40]} 36. Kf1 {[%clk 0:01:17.9]} 36... c5 {[%clk 0:00:32.7]} 37. Ra5 {[%clk
0:01:14.2]} 37... Nc6 {[%clk 0:00:31.6]} 38. Rxc5 {[%clk 0:01:13.9]} 38... Rxa7
{[%clk 0:00:32.3]} 39. g3 {[%clk 0:01:13.8]} 39... Ne5 {[%clk 0:00:30.8]} 40.
Kg2 {[%clk 0:01:13.5]} 40... Bc6+ {[%clk 0:00:30.3]} 41. Kh2 {[%clk 0:01:10.5]}
41... Ra1 {[%clk 0:00:24.9]} 42. g4 {[%clk 0:01:10.9]} 42... Rh1+ {[%clk
0:00:24.4]} 43. Kg3 {[%clk 0:01:09.8]} 43... Rg1+ {[%clk 0:00:24.8]} 0-1

[Event "Early-Titled-Tuesday-Blitz-September-05-2023"]
[Site "Chess.com"]
[Date "2023.09.05"]
[Round "5"]
[White "dropstoneDP"]
[Black "tptagain"]
[Result "0-1"]
[WhiteElo "3003"]
[BlackElo "2922"]
[TimeControl "180+1"]
[EndTime "8:53:41 PDT"]
[Termination "tptagain won by resignation"]

1. e4 {[%clk 0:00:57.7]} 1... c6 {[%clk 0:03:00]} 2. d4 {[%clk 0:00:57.5]} 2...
d5 {[%clk 0:03:00.6]} 3. e5 {[%clk 0:00:58.2]} 3... Bf5 {[%clk 0:03:00.5]} 4.
Nf3 {[%clk 0:00:58.7]} 4... e6 {[%clk 0:02:59.7]} 5. Be2 {[%clk 0:00:59.2]} 5...
Nd7 {[%clk 0:02:58.2]} 6. O-O {[%clk 0:00:58.6]} 6... Ne7 {[%clk 0:02:58.8]} 7.
a4 {[%clk 0:00:59.3]} 7... a5 {[%clk 0:02:58.6]} 8. Nbd2 {[%clk 0:00:59]} 8...
Nc8 {[%clk 0:02:57.8]} 9. Re1 {[%clk 0:00:57.9]} 9... Be7 {[%clk 0:02:51.5]} 10.
Nf1 {[%clk 0:00:57]} 10... Bg6 {[%clk 0:02:43.1]} 11. Ng3 {[%clk 0:00:54.7]}
11... Ncb6 {[%clk 0:02:34.8]} 12. b3 {[%clk 0:00:50.6]} 12... c5 {[%clk
0:02:27.9]} 13. Be3 {[%clk 0:00:47.7]} 13... O-O {[%clk 0:02:25.5]} 14. Bb5
{[%clk 0:00:40.7]} 14... Rc8 {[%clk 0:02:15.7]} 15. c3 {[%clk 0:00:36.4]} 15...
cxd4 {[%clk 0:02:06.1]} 16. Bxd4 {[%clk 0:00:34.7]} 16... Bc5 {[%clk 0:01:54.7]}
17. Qd2 {[%clk 0:00:34.8]} 17... Qe7 {[%clk 0:01:49.6]} 18. h4 {[%clk 0:00:35]}
18... h6 {[%clk 0:01:49.6]} 19. h5 {[%clk 0:00:34.5]} 19... Bh7 {[%clk
0:01:50.1]} 20. Rac1 {[%clk 0:00:28.5]} 20... Rc7 {[%clk 0:01:47.1]} 21. Qb2
{[%clk 0:00:22.9]} 21... Ba3 {[%clk 0:01:44.3]} 22. Qd2 {[%clk 0:00:22.8]} 22...
Bxc1 {[%clk 0:01:44.5]} 23. Qxc1 {[%clk 0:00:22.9]} 23... Rfc8 {[%clk
0:01:43.8]} 24. Qe3 {[%clk 0:00:23.5]} 24... Nc5 {[%clk 0:01:33.7]} 25. b4
{[%clk 0:00:22.1]} 25... Ncxa4 {[%clk 0:01:33.9]} 26. Bxb6 {[%clk 0:00:15.8]}
26... Rxc3 {[%clk 0:01:33.7]} 27. Qd4 {[%clk 0:00:15.8]} 27... Nxb6 {[%clk
0:01:30.6]} 28. Qxb6 {[%clk 0:00:13.5]} 28... Qxb4 {[%clk 0:01:30.2]} 29. Re3
{[%clk 0:00:04.5]} 29... R3c5 {[%clk 0:01:23.6]} 30. Qxb7 {[%clk 0:00:02.4]}
30... Qxb5 {[%clk 0:01:23.3]} 31. Qe7 {[%clk 0:00:02.9]} 31... Qb4 {[%clk
0:01:16.1]} 32. Kh2 {[%clk 0:00:02.6]} 32... R5c7 {[%clk 0:01:16]} 33. Qxb4
{[%clk 0:00:01.7]} 33... axb4 {[%clk 0:01:16.9]} 34. Rb3 {[%clk 0:00:02.3]}
34... Rb8 {[%clk 0:01:17.2]} 35. Nd4 {[%clk 0:00:02.4]} 35... Rc4 {[%clk
0:01:08]} 36. Rb2 {[%clk 0:00:03]} 36... Rxd4 {[%clk 0:01:07.1]} 0-1